{"text_format":"1","workbook":"xlsx","n_sheets":11,"sheets":["교육과정기초입력","선택과목그룹설정","교육과정편제표","학생용편제표","교육과정편성점검표","교육과정편제점검","피드백","점검내용","과목기본정보","DB","5학급_모듈1"],"not_rendered":{"charts":0,"images":1,"macros":1,"external_links":0,"defined_names":3,"comments":0,"pivot_tables":0},"unopened":[],"bounds":{"document_bytes":16777216,"sheet_cells":100000,"rows_first":2000,"rows_last":500,"rows_between":2000,"halvings":0,"cell_chars":16384,"cell_head_chars":4096},"cells_cut":0,"cells_raw":0,"read":"whole","date_system":"1900"}

{"sheet":"교육과정기초입력","index":0,"n_rows":177,"n_cols":17,"rows_kept":177,"cut":false,"hidden":false,"merged":[[4,6,4,7],[4,8,4,9],[4,10,4,11],[4,0,5,0],[4,1,5,1],[4,2,5,2],[4,3,5,3],[4,4,5,4],[4,5,5,5]]}
[]
["학교명","설악고등학교"]
["입학년도",2023,"과정명","2022개정_일반","학급수",5,null,null,null,null,null,null,null,null,null,null,"5학급_모듈1"]
[]
["No","교과(군)","과목유형","과목명","기준학점","학교지정\n여부","1학년",null,"2학년",null,"3학년"]
[null,null,null,null,null,null,"1학기","2학기","1학기","2학기","1학기","2학기"]
[{"$f":"ROW()-6","v":1},"국어","공통과목","공통국어1",4,"지정과목",4]
[{"$f":"ROW()-6","v":2},"국어","공통과목","공통국어2",4,"지정과목",null,4]
[3,"국어","일반선택","화법과 언어",4,"지정과목",null,null,null,null,4]
[4,"국어","일반선택","독서와 작문",4,"지정과목",null,null,null,4]
[5,"국어","일반선택","문학",4,"지정과목",null,null,4]
[6,"국어","진로선택","주제 탐구 독서",4,null,null,null,null,4]
[7,"국어","진로선택","문학과 영상",4]
[8,"국어","진로선택","직무 의사소통",4,null,null,null,null,null,null,3]
[9,"국어","융합선택","독서 토론과 글쓰기",4,null,null,null,null,null,4]
[10,"국어","융합선택","매체 의사소통",4,null,null,null,null,null,null,4]
[11,"국어","융합선택","언어생활 탐구",4,null,null,null,null,null,4]
[12,"수학","공통과목","공통수학1",4,"지정과목",4]
[13,"수학","공통과목","공통수학2",4,"지정과목",null,4]
[14,"수학","공통과목","기본수학1",4]
[15,"수학","공통과목","기본수학2",4]
[16,"수학","일반선택","대수",4,"지정과목",null,null,4]
[17,"수학","일반선택","미적분Ⅰ",4,"지정과목",null,null,null,4]
[18,"수학","일반선택","확률과 통계",4,"지정과목",null,null,null,null,4]
[19,"수학","진로선택","기하",4,null,null,null,null,4]
[20,"수학","진로선택","미적분Ⅱ",4,null,null,null,null,null,4]
[21,"수학","진로선택","경제 수학",4,null,null,null,null,null,null,3]
[22,"수학","진로선택","인공지능 수학",4]
[23,"수학","진로선택","직무 수학",4,null,null,null,null,null,null,4]
[24,"수학","융합선택","수학과 문화",4]
[25,"수학","융합선택","실용 통계",4,null,null,null,null,null,4]
[26,"수학","융합선택","수학과제 탐구",4]
[27,"영어","공통과목","공통영어1",4,"지정과목",4]
[28,"영어","공통과목","공통영어2",4,"지정과목",null,4]
[29,"영어","공통과목","기본영어1",4]
[30,"영어","공통과목","기본영어2",4]
[31,"영어","일반선택","영어Ⅰ",4,"지정과목",null,null,4]
[32,"영어","일반선택","영어Ⅱ",4,"지정과목",null,null,null,4]
[33,"영어","일반선택","영어 독해와 작문",4,null,null,null,null,null,4]
[34,"영어","진로선택","영미 문학 읽기",4]
[35,"영어","진로선택","영어 발표와 토론",4,null,null,null,null,null,4]
[36,"영어","진로선택","심화 영어",4,null,null,null,null,null,null,3]
[37,"영어","진로선택","심화 영어 독해와 작문",4]
[38,"영어","진로선택","직무 영어",4,null,null,null,4]
[39,"영어","융합선택","실생활 영어 회화",4]
[40,"영어","융합선택","미디어 영어",4,null,null,null,null,4]
[41,"영어","융합선택","세계 문화와 영어",4,null,null,null,null,null,null,4]
[42,"사회(역사/도덕 포함)","공통과목","한국사1",3,"지정과목",3]
[43,"사회(역사/도덕 포함)","공통과목","한국사2",3,"지정과목",null,3]
[44,"사회(역사/도덕 포함)","공통과목","통합사회1",4,"지정과목",4]
[45,"사회(역사/도덕 포함)","공통과목","통합사회2",4,"지정과목",null,4]
[46,"사회(역사/도덕 포함)","일반선택","세계시민과 지리",4,null,null,null,4,4]
[47,"사회(역사/도덕 포함)","일반선택","세계사",4,null,null,null,4,4]
[48,"사회(역사/도덕 포함)","일반선택","사회와 문화",4,null,null,null,4,4]
[49,"사회(역사/도덕 포함)","일반선택","현대사회와 윤리",4,null,null,null,4,4]
[50,"사회(역사/도덕 포함)","진로선택","한국지리 탐구",4,null,null,null,null,4]
[51,"사회(역사/도덕 포함)","진로선택","도시의 미래 탐구",4,null,null,null,null,null,4]
[52,"사회(역사/도덕 포함)","진로선택","동아시아 역사 기행",4,null,null,null,null,4]
[53,"사회(역사/도덕 포함)","진로선택","정치",4,null,null,null,null,null,4]
[54,"사회(역사/도덕 포함)","진로선택","법과 사회",4,null,null,null,null,4]
[55,"사회(역사/도덕 포함)","진로선택","경제",4,null,null,null,null,null,4]
[56,"사회(역사/도덕 포함)","진로선택","윤리와 사상",4,null,null,null,null,4]
[57,"사회(역사/도덕 포함)","진로선택","인문학과 윤리",4,null,null,null,null,null,4]
[58,"사회(역사/도덕 포함)","진로선택","국제 관계의 이해",4,null,null,null,null,null,4]
[59,"사회(역사/도덕 포함)","융합선택","여행지리",4]
[60,"사회(역사/도덕 포함)","융합선택","역사로 탐구하는 현대 세계",4]
[61,"사회(역사/도덕 포함)","융합선택","사회문제 탐구",4]
[62,"사회(역사/도덕 포함)","융합선택","금융과 경제생활",4]
[63,"사회(역사/도덕 포함)","융합선택","윤리문제 탐구",4]
[64,"사회(역사/도덕 포함)","융합선택","기후변화와 지속가능한 세계",4]
[65,"과학","공통과목","통합과학1",4,"지정과목",4]
[66,"과학","공통과목","통합과학2",4,"지정과목",null,4]
[67,"과학","공통과목","과학탐구실험1",1,"지정과목",1]
[68,"과학","공통과목","과학탐구실험2",1,"지정과목",null,1]
[69,"과학","일반선택","물리학",4,null,null,null,4,4]
[{"$f":"ROW()-6","v":70},"과학","일반선택","화학",4,null,null,null,4,4]
[71,"과학","일반선택","생명과학",4,null,null,null,4,4]
[72,"과학","일반선택","지구과학",4,null,null,null,4,4]
[73,"과학","진로선택","역학과 에너지",4,null,null,null,null,4]
[74,"과학","진로선택","전자기와 양자",4,null,null,null,null,null,4]
[75,"과학","진로선택","물질과 에너지",4,null,null,null,null,4]
[76,"과학","진로선택","화학 반응의 세계",4,null,null,null,null,null,4]
[77,"과학","진로선택","세포와 물질대사",4,null,null,null,null,null,4]
[78,"과학","진로선택","생물의 유전",4,null,null,null,null,4]
[79,"과학","진로선택","지구시스템과학",4,null,null,null,null,4]
[80,"과학","진로선택","행성우주과학",4,null,null,null,null,null,4]
[81,"과학","융합선택","과학의 역사와 문화",4]
[82,"과학","융합선택","기후변화와 환경생태",4]
[83,"과학","융합선택","융합과학 탐구",4]
[84,"체육","일반선택","체육1",3,"지정과목",2]
[85,"체육","일반선택","체육2",3,"지정과목",null,2]
[86,"체육","진로선택","운동과 건강",3]
[87,"체육","진로선택","스포츠 문화",2,"지정과목",null,null,1]
[88,"체육","진로선택","스포츠 과학",2,"지정과목",null,null,null,1]
[89,"체육","융합선택","스포츠 생활1",3,"지정과목",null,null,null,null,2]
[90,"체육","융합선택","스포츠 생활2 ",3,"지정과목",null,null,null,null,null,2]
[91,"예술","일반선택","음악",3,"지정과목",3,3]
[92,"예술","일반선택","미술",3,"지정과목",3,3]
[93,"예술","진로선택","연극",3]
[94,"예술","진로선택","음악 연주와 창작",3]
[95,"예술","진로선택","음악 감상과 비평",3,null,null,null,null,4]
[96,"예술","진로선택","미술 창작",3,null,null,null,4]
[97,"예술","진로선택","미술 감상과 비평",3]
[98,"예술","융합선택","음악과 미디어",3,null,null,null,null,null,null,4]
[99,"예술","융합선택","미술과 매체",3,null,null,null,null,null,4]
[100,"기술·가정/정보","일반선택","기술·가정",4]
[101,"기술·가정/정보","일반선택","정보",4,null,null,null,null,null,4]
[102,"기술·가정/정보","진로선택","로봇과 공학세계",4]
[103,"기술·가정/정보","진로선택","생활과학 탐구",4]
[104,"기술·가정/정보","진로선택","인공지능 기초",4]
[105,"기술·가정/정보","진로선택","데이터 과학",4]
[106,"기술·가정/정보","융합선택","창의 공학 설계",4]
[107,"기술·가정/정보","융합선택","지식 재산 일반",4,null,null,null,null,null,null,4]
[108,"기술·가정/정보","융합선택","생애 설계와 자립",2]
[109,"기술·가정/정보","융합선택","아동발달과 부모",4]
[110,"기술·가정/정보","융합선택","소프트웨어와 생활",4]
[111,"교양","일반선택","진로와 직업",3]
[112,"교양","일반선택","생태와 환경",3]
[113,"교양","진로선택","인간과 철학",3,null,null,null,null,null,null,4]
[114,"교양","진로선택","논리와 사고",3]
[115,"교양","진로선택","인간과 심리",3]
[116,"교양","진로선택","교육의 이해",3]
[117,"교양","진로선택","삶과 종교",3]
[118,"교양","진로선택","보건",3,null,null,null,null,null,null,4]
[119,"교양","융합선택","인간과 경제활동",3]
[120,"교양","융합선택","논술",3]
[121,"제2외국어/한문","일반선택","독일어",4]
[122,"제2외국어/한문","일반선택","프랑스어",4]
[123,"제2외국어/한문","일반선택","스페인어",4]
[124,"제2외국어/한문","일반선택","중국어",4,null,null,null,4]
[125,"제2외국어/한문","일반선택","일본어",4,null,null,null,4]
[126,"제2외국어/한문","일반선택","러시아어",4]
[127,"제2외국어/한문","일반선택","아랍어",4]
[128,"제2외국어/한문","일반선택","베트남어",4]
[129,"제2외국어/한문","일반선택","한문",4,null,null,null,4]
[130,"제2외국어/한문","진로선택","독일어 회화",4]
[131,"제2외국어/한문","진로선택","프랑스어 회화",4]
[132,"제2외국어/한문","진로선택","스페인어 회화",4]
[133,"제2외국어/한문","진로선택","중국어 회화",4]
[{"$f":"ROW()-6","v":134},"제2외국어/한문","진로선택","일본어 회화",4]
[135,"제2외국어/한문","진로선택","러시아어 회화",4]
[136,"제2외국어/한문","진로선택","아랍어 회화",4]
[137,"제2외국어/한문","진로선택","베트남어 회화",4]
[138,"제2외국어/한문","진로선택","심화 독일어",4]
[139,"제2외국어/한문","진로선택","심화 프랑스어",4]
[140,"제2외국어/한문","진로선택","심화 스페인어",4]
[141,"제2외국어/한문","진로선택","심화 중국어",4]
[142,"제2외국어/한문","진로선택","심화 일본어",4]
[143,"제2외국어/한문","진로선택","심화 러시아어",4]
[144,"제2외국어/한문","진로선택","심화 아랍어",4]
[145,"제2외국어/한문","진로선택","심화 베트남어",4]
[146,"제2외국어/한문","진로선택","한문 고전 읽기",4]
[147,"제2외국어/한문","융합선택","독일어권 문화",4]
[148,"제2외국어/한문","융합선택","프랑스어권 문화",4]
[149,"제2외국어/한문","융합선택","스페인어권 문화",4]
[150,"제2외국어/한문","융합선택","중국 문화",4]
[151,"제2외국어/한문","융합선택","일본 문화",4]
[152,"제2외국어/한문","융합선택","러시아 문화",4]
[153,"제2외국어/한문","융합선택","아랍 문화",4]
[154,"제2외국어/한문","융합선택","베트남 문화",4]
[155,"제2외국어/한문","융합선택","언어생활과 한자",4]
[156,"기술·가정/정보","진로선택","컴퓨터 시스템 일반",4]
[157,"기술·가정/정보","진로선택","프로그래밍",4]
[158,"기술·가정/정보","진로선택","사무관리",4]
[159,"기술·가정/정보","진로선택","굴삭기운전",4]
[160]
[161]
[162]
[163]
[164]
[165]
[166]
[167]
[168]
[169]
[170]
[171]

{"sheet":"선택과목그룹설정","index":1,"n_rows":32,"n_cols":36,"rows_kept":32,"cut":false,"hidden":false,"merged":[]}
[]
[]
[]
[]
[null,"1학년1학기","학점","선택\n그룹","개설\n반수","담당\n교과",null,"1학년2학기","학점","선택\n그룹","개설\n반수","담당\n교과",null,"2학년1학기","학점","선택\n그룹","개설\n반수","담당\n교과",null,"2학년2학기","학점","선택\n그룹","개설\n반수","담당\n교과",null,"3학년1학기","학점","선택\n그룹","개설\n반수","담당\n교과",null,"3학년2학기","학점","선택\n그룹","개설\n반수","담당\n교과"]
[null,"공통국어1",4,"지정",5,"국어",null,"공통국어2",4,"지정",5,"국어",null,"문학",4,"지정",5,"국어",null,"독서와 작문",4,"지정",5,"국어",null,"화법과 언어",4,"지정",5,"국어",null,"스포츠 생활2 ",2,"지정",5,"체육"]
[null,"공통수학1",4,"지정",5,"수학",null,"공통수학2",4,"지정",5,"수학",null,"대수",4,"지정",5,"수학",null,"미적분Ⅰ",4,"지정",5,"수학",null,"확률과 통계",4,"지정",5,"수학",null,"매체 의사소통",4,"A",3,"국어"]
[null,"공통영어1",4,"지정",5,"영어",null,"공통영어2",4,"지정",5,"영어",null,"영어Ⅰ",4,"지정",5,"영어",null,"영어Ⅱ",4,"지정",5,"영어",null,"스포츠 생활1",2,"지정",5,"체육",null,"직무 수학",4,"A",3,"수학"]
[null,"통합사회1",4,"지정",5,"사회",null,"통합사회2",4,"지정",5,"사회",null,"스포츠 문화",1,"지정",5,"체육",null,"스포츠 과학",1,"지정",5,"체육",null,"독서 토론과 글쓰기",4,"A",3,"국어",null,"세계 문화와 영어",4,"A",3,"영어"]
[null,"통합과학1",4,"지정",5,"과학",null,"통합과학2",4,"지정",5,"과학",null,"직무 영어",4,"A",3,"영어",null,"주제 탐구 독서",4,"A",3,"국어",null,"언어생활 탐구",4,"A",3,"국어",null,"음악과 미디어",4,"A",3,"음악"]
[null,"한국사1",3,"지정",5,"역사",null,"한국사2",3,"지정",5,"역사",null,"세계시민과 지리",4,"A",3,"지리",null,"기하",4,"A",3,"수학",null,"미적분Ⅱ",4,"A",3,"수학",null,"지식 재산 일반",4,"A",3,"기술가정"]
[null,"음악",3,"지정",2,"음악",null,"음악",3,"지정",2,"음악",null,"세계사",4,"A",3,"역사",null,"미디어 영어",4,"A",3,"영어",null,"실용 통계",4,"A",3,"수학",null,"인간과 철학",4,"A",3,"교양"]
[null,"미술",3,"지정",2,"미술",null,"미술",3,"지정",2,"미술",null,"사회와 문화",4,"A",3,"일반사회",null,"세계시민과 지리",4,"A",3,"지리",null,"영어 독해와 작문",4,"A",3,"영어",null,"보건",4,"A",3,"교양"]
[null,"체육1",2,"지정",5,"체육",null,"체육2",2,"지정",5,"체육",null,"현대사회와 윤리",4,"A",3,"도덕",null,"세계사",4,"A",3,"역사",null,"영어 발표와 토론",4,"A",3,"영어",null,"직무 의사소통",3,"B",3,"국어"]
[null,"과학탐구실험1",1,"지정",5,"과학",null,"과학탐구실험2",1,"지정",5,"과학",null,"물리학",4,"A",3,"물리학",null,"사회와 문화",4,"A",3,"일반사회",null,"도시의 미래 탐구",4,"A",3,"지리",null,"경제 수학",3,"B",3,"수학"]
[null,null,null,null,null,null,null,null,null,null,null,null,null,"화학",4,"A",3,"화학",null,"현대사회와 윤리",4,"A",3,"도덕",null,"정치",4,"A",3,"일반사회",null,"심화 영어",3,"B",3,"영어"]
[null,null,null,null,null,null,null,null,null,null,null,null,null,"생명과학",4,"A",3,"생명과학",null,"한국지리 탐구",4,"A",3,"지리",null,"경제",4,"A",3,"일반사회"]
[null,null,null,null,null,null,null,null,null,null,null,null,null,"지구과학",4,"A",3,"지구과학",null,"동아시아 역사 기행",4,"A",3,"역사",null,"인문학과 윤리",4,"A",3,"도덕",null,"선택그룹","택","학점"]
[null,null,null,null,null,null,null,null,null,null,null,null,null,"미술 창작",4,"A",3,"미술",null,"법과 사회",4,"A",3,"일반사회",null,"국제 관계의 이해",4,"A",3,"일반사회",null,"A",5,20]
[null,null,null,null,null,null,null,null,null,null,null,null,null,"중국어",4,"B",3,"제2외국어",null,"윤리와 사상",4,"A",3,"도덕",null,"전자기와 양자",4,"A",3,"물리학",null,"B",2,6]
[null,null,null,null,null,null,null,null,null,null,null,null,null,"일본어",4,"B",3,"제2외국어",null,"물리학",4,"A",3,"물리학",null,"화학 반응의 세계",4,"A",3,"화학"]
[null,null,null,null,null,null,null,null,null,null,null,null,null,"한문",4,"B",3,"한문",null,"화학",4,"A",3,"화학",null,"세포와 물질대사",4,"A",3,"생명과학"]
[null,null,null,null,null,null,null,null,null,null,null,null,null,null,null,null,null,null,null,"생명과학",4,"A",3,"생명과학",null,"행성우주과학",4,"A",3,"지구과학"]
[null,null,null,null,null,null,null,null,null,null,null,null,null,"선택그룹","택","학점",null,null,null,"지구과학",4,"A",3,"지구과학",null,"미술과 매체",4,"A",3,"미술"]
[null,null,null,null,null,null,null,null,null,null,null,null,null,"A",3,12,null,null,null,"역학과 에너지",4,"A",3,"물리학",null,"정보",4,"A",3,"정보"]
[null,null,null,null,null,null,null,null,null,null,null,null,null,"B",1,4,null,null,null,"물질과 에너지",4,"A",3,"화학"]
[null,null,null,null,null,null,null,null,null,null,null,null,null,null,null,null,null,null,null,"생물의 유전",4,"A",3,"생명과학",null,"선택그룹","택","학점"]
[null,null,null,null,null,null,null,null,null,null,null,null,null,null,null,null,null,null,null,"지구시스템과학",4,"A",3,"지구과학",null,"A",5,20]
[null,null,null,null,null,null,null,null,null,null,null,null,null,null,null,null,null,null,null,"음악 감상과 비평",4,"A",3,"음악"]
[]
[null,null,null,null,null,null,null,null,null,null,null,null,null,null,null,null,null,null,null,"선택그룹","택","학점"]
[null,null,null,null,null,null,null,null,null,null,null,null,null,null,null,null,null,null,null,"A",4,16]

{"sheet":"교육과정편제표","index":2,"n_rows":102,"n_cols":15,"rows_kept":102,"cut":false,"hidden":false,"merged":[[6,13,10,13],[11,13,15,13],[20,2,20,6],[4,11,4,12],[4,13,5,13],[4,14,5,14],[1,1,2,10],[4,1,5,1],[4,2,5,2],[4,3,4,4],[4,5,5,5],[4,6,5,6],[4,7,4,8],[4,9,4,10],[6,2,10,2],[11,2,15,2],[6,14,10,14],[11,14,15,14],[101,1,101,6],[6,1,19,1],[20,1,36,1],[38,1,97,1],[16,2,19,2],[21,2,24,2],[25,2,28,2],[29,2,34,2],[35,2,36,2],[39,2,42,2],[43,2,46,2],[48,2,50,2],[54,2,61,2],[62,2,69,2],[75,2,76,2],[77,2,81,2],[16,13,19,13],[21,13,22,13],[23,13,24,13],[25,13,28,13],[29,13,34,13],[16,14,19,14],[21,14,22,14],[23,14,24,14],[25,14,28,14],[29,14,34,14],[35,14,36,14],[37,2,37,6],[98,2,98,6],[99,1,99,6],[100,1,100,6],[82,2,85,2],[93,2,94,2],[88,12,94,12],[95,12,97,12],[35,13,36,13],[71,2,72,2],[73,2,74,2],[38,9,47,9],[48,9,50,9],[51,10,70,10],[71,11,87,11]]}
[]
[null,"설악고등학교 2024학년도 입학생 교육과정 편제표(2022개정_일반)"]
[]
[]
[null,"구분","과목","과목",null,"기준\n학점","운영 \n학점","1학년",null,"2학년",null,"3학년",null,"이수\n단위","필수\n단위"]
[null,null,null,"일반","정보",null,null,"1학기","2학기","1학기","2학기","1학기","2학기"]
[null,"학교지정","국어","공통","공통국어1",4,4,4,null,null,null,null,null,20,8]
[null,null,null,"공통","공통국어2",4,4,null,4]
[null,null,null,"일반","문학",4,4,null,null,4]
[null,null,null,"일반","독서와 작문",4,4,null,null,null,4]
[null,null,null,"일반","화법과 언어",4,4,null,null,null,null,4]
[null,null,"수학","공통","공통수학1",4,4,4,null,null,null,null,null,20,8]
[null,null,null,"공통","공통수학2",4,4,null,4]
[null,null,null,"일반","대수",4,4,null,null,4]
[null,null,null,"일반","미적분Ⅰ",4,4,null,null,null,4]
[null,null,null,"일반","확률과 통계",4,4,null,null,null,null,4]
[null,null,"영어","공통","공통영어1",4,4,4,null,null,null,null,null,16,8]
[null,null,null,"공통","공통영어2",4,4,null,4]
[null,null,null,"일반","영어Ⅰ",4,4,null,null,4]
[null,null,null,"일반","영어Ⅱ",4,4,null,null,null,4]
[null,"학교지정","기초 소계",null,null,null,null,{"$f":"SUM(H7:H20)","v":12},12,12,12,8,0,{"$f":"SUM(H21:M21)","v":56}]
[null,null,"사회(역사/도덕 포함)","공통","통합사회1",4,4,4,null,null,null,null,null,8,8]
[null,null,null,"공통","통합사회2",4,4,null,4]
[null,null,null,"공통","한국사1",3,3,3,null,null,null,null,null,6,6]
[null,null,null,"공통","한국사2",3,3,null,3]
[null,null,"과학","공통","통합과학1",4,4,4,null,null,null,null,null,10,10]
[null,null,null,"공통","통합과학2",4,4,null,4]
[null,null,null,"공통","과학탐구실험1",1,1,1]
[null,null,null,"공통","과학탐구실험2",1,1,null,1]
[null,null,"체육","일반","체육1",3,2,2,null,null,null,null,null,10,10]
[null,null,null,"일반","체육2",3,2,null,2]
[null,null,null,"진로","스포츠 문화",2,1,null,null,1]
[null,null,null,"진로","스포츠 과학",2,1,null,null,null,1]
[null,null,null,"융합","스포츠 생활1",3,2,null,null,null,null,2]
[null,null,null,"융합","스포츠 생활2 ",3,2,null,null,null,null,null,2]
[null,null,"예술","일반","음악",3,3,3,3,null,null,null,null,4.8,10]
[null,null,null,"일반","미술",3,3,3,3]
[null,"학교지정","학교지정 소계",null,null,null,null,29,29,13,13,10,2,94]
[null,"학생선택","영어","진로","직무 영어",4,4,null,null,"택3\r\n12학점"]
[null,null,"사회(역사/도덕 포함)","일반","세계시민과 지리",4,4]
[null,null,null,"일반","세계사",4,4]
[null,null,null,"일반","사회와 문화",4,4]
[null,null,null,"일반","현대사회와 윤리",4,4]
[null,null,"과학","일반","물리학",4,4]
[null,null,null,"일반","화학",4,4]
[null,null,null,"일반","생명과학",4,4]
[null,null,null,"일반","지구과학",4,4]
[null,null,"예술","진로","미술 창작",3,4]
[null,null,"제2외국어/한문","일반","중국어",4,4,null,null,"택1\r\n4학점"]
[null,null,null,"일반","일본어",4,4]
[null,null,null,"일반","한문",4,4]
[null,null,"국어","진로","주제 탐구 독서",4,4,null,null,null,"택4\r\n16학점"]
[null,null,"수학","진로","기하",4,4]
[null,null,"영어","융합","미디어 영어",4,4]
[null,null,"사회(역사/도덕 포함)","일반","세계시민과 지리",4,4]
[null,null,null,"일반","세계사",4,4]
[null,null,null,"일반","사회와 문화",4,4]
[null,null,null,"일반","현대사회와 윤리",4,4]
[null,null,null,"진로","한국지리 탐구",4,4]
[null,null,null,"진로","동아시아 역사 기행",4,4]
[null,null,null,"진로","법과 사회",4,4]
[null,null,null,"진로","윤리와 사상",4,4]
[null,null,"과학","일반","물리학",4,4]
[null,null,null,"일반","화학",4,4]
[null,null,null,"일반","생명과학",4,4]
[null,null,null,"일반","지구과학",4,4]
[null,null,null,"진로","역학과 에너지",4,4]
[null,null,null,"진로","물질과 에너지",4,4]
[null,null,null,"진로","생물의 유전",4,4]
[null,null,null,"진로","지구시스템과학",4,4]
[null,null,"예술","진로","음악 감상과 비평",3,4]
[null,null,"국어","융합","독서 토론과 글쓰기",4,4,null,null,null,null,"택5\r\n20학점"]
[null,null,null,"융합","언어생활 탐구",4,4]
[null,null,"수학","진로","미적분Ⅱ",4,4]
[null,null,null,"융합","실용 통계",4,4]
[null,null,"영어","일반","영어 독해와 작문",4,4]
[null,null,null,"진로","영어 발표와 토론",4,4]
[null,null,"사회(역사/도덕 포함)","진로","도시의 미래 탐구",4,4]
[null,null,null,"진로","정치",4,4]
[null,null,null,"진로","경제",4,4]
[null,null,null,"진로","인문학과 윤리",4,4]
[null,null,null,"진로","국제 관계의 이해",4,4]
[null,null,"과학","진로","전자기와 양자",4,4]
[null,null,null,"진로","화학 반응의 세계",4,4]
[null,null,null,"진로","세포와 물질대사",4,4]
[null,null,null,"진로","행성우주과학",4,4]
[null,null,"예술","융합","미술과 매체",3,4]
[null,null,"기술·가정/정보","일반","정보",4,4]
[null,null,"국어","융합","매체 의사소통",4,4,null,null,null,null,null,"택5\r\n20학점"]
[null,null,"수학","진로","직무 수학",4,4]
[null,null,"영어","융합","세계 문화와 영어",4,4]
[null,null,"예술","융합","음악과 미디어",3,4]
[null,null,"기술·가정/정보","융합","지식 재산 일반",4,4]
[null,null,"교양","진로","인간과 철학",3,4]
[null,null,null,"진로","보건",3,4]
[null,null,"국어","진로","직무 의사소통",4,3,null,null,null,null,null,"택2\r\n6학점"]
[null,null,"수학","진로","경제 수학",4,3]
[null,null,"영어","진로","심화 영어",4,3]
[null,"학생선택","학생선택 소계",null,null,null,null,0,0,16,16,20,26,78]
[null,"교과 합계",null,null,null,null,null,29,29,29,29,30,28,174]
[null,"창체 합계",null,null,null,null,null,null,null,null,null,null,null,{"$f":"SUM(H101:M101)","v":0}]
[null,"총 합계",null,null,null,null,null,{"$f":"IF(LEN(TRIM(H100))=0, \"\", IF(IFERROR(FIND(\"~\", H100), 0)>0, (VALUE(TRIM(LEFT(H100, FIND(\"~\", H100)-1)))+H101)&\"~\"&(VALUE(TRIM(MID(H100, FIND(\"~\", H100)+1, LEN(H100))))+H101), IFERROR(VALUE(TRIM(H100))+H101, \"\")))","v":29},29,29,29,30,28,174]

{"sheet":"학생용편제표","index":3,"n_rows":41,"n_cols":25,"rows_kept":41,"cut":false,"hidden":false,"merged":[[1,1,2,5],[9,1,18,1],[19,1,28,1],[29,1,32,1],[33,1,36,1],[9,21,15,21],[16,21,18,21],[37,1,39,1],[9,6,18,6],[19,6,21,6],[9,11,28,11],[9,16,25,16]]}
[]
[null,"학생과목선택 점검용 교육과정편제표"]
[]
[]
[]
[null,"1) 학교지정과목",null,null,null,null,"2) 학생선택과목"]
[null,null,null,null,null,null,"2학년 1학기 (2026년)",null,null,null,null,"2학년 2학기 (2026년)",null,null,null,null,"3학년 1학기 (2027년)",null,null,null,null,"3학년 2학기 (2027년)"]
[]
[null,"학기","유형","과목명","학점",null,"선택그룹","유형","과목명","학점",null,"선택그룹","유형","과목명","학점",null,"선택그룹","유형","과목명","학점",null,"선택그룹","유형","과목명","학점"]
[null,"1학년 1학기","공통","공통국어1",4,null,"A \r\n택3","진로","직무 영어",4,null,"A \r\n택4","진로","주제 탐구 독서",4,null,"A \r\n택5","융합","독서 토론과 글쓰기",4,null,"A \r\n택5","융합","매체 의사소통",4]
[null,null,"공통","공통수학1",4,null,null,"일반","세계시민과 지리",4,null,null,"진로","기하",4,null,null,"융합","언어생활 탐구",4,null,null,"진로","직무 수학",4]
[null,null,"공통","공통영어1",4,null,null,"일반","세계사",4,null,null,"융합","미디어 영어",4,null,null,"진로","미적분Ⅱ",4,null,null,"융합","세계 문화와 영어",4]
[null,null,"공통","통합사회1",4,null,null,"일반","사회와 문화",4,null,null,"일반","세계시민과 지리",4,null,null,"융합","실용 통계",4,null,null,"융합","음악과 미디어",4]
[null,null,"공통","통합과학1",4,null,null,"일반","현대사회와 윤리",4,null,null,"일반","세계사",4,null,null,"일반","영어 독해와 작문",4,null,null,"융합","지식 재산 일반",4]
[null,null,"공통","한국사1",3,null,null,"일반","물리학",4,null,null,"일반","사회와 문화",4,null,null,"진로","영어 발표와 토론",4,null,null,"진로","인간과 철학",4]
[null,null,"일반","음악",3,null,null,"일반","화학",4,null,null,"일반","현대사회와 윤리",4,null,null,"진로","도시의 미래 탐구",4,null,null,"진로","보건",4]
[null,null,"일반","미술",3,null,null,"일반","생명과학",4,null,null,"진로","한국지리 탐구",4,null,null,"진로","정치",4,null,"B \r\n택2","진로","직무 의사소통",3]
[null,null,"일반","체육1",2,null,null,"일반","지구과학",4,null,null,"진로","동아시아 역사 기행",4,null,null,"진로","경제",4,null,null,"진로","경제 수학",3]
[null,null,"공통","과학탐구실험1",1,null,null,"진로","미술 창작",4,null,null,"진로","법과 사회",4,null,null,"진로","인문학과 윤리",4,null,null,"진로","심화 영어",3]
[null,"1학년 2학기","공통","공통국어2",4,null,"B \r\n택1","일반","중국어",4,null,null,"진로","윤리와 사상",4,null,null,"진로","국제 관계의 이해",4]
[null,null,"공통","공통수학2",4,null,null,"일반","일본어",4,null,null,"일반","물리학",4,null,null,"진로","전자기와 양자",4]
[null,null,"공통","공통영어2",4,null,null,"일반","한문",4,null,null,"일반","화학",4,null,null,"진로","화학 반응의 세계",4]
[null,null,"공통","통합사회2",4,null,null,null,null,null,null,null,"일반","생명과학",4,null,null,"진로","세포와 물질대사",4]
[null,null,"공통","통합과학2",4,null,null,null,null,null,null,null,"일반","지구과학",4,null,null,"진로","행성우주과학",4]
[null,null,"공통","한국사2",3,null,null,null,null,null,null,null,"진로","역학과 에너지",4,null,null,"융합","미술과 매체",4]
[null,null,"일반","음악",3,null,null,null,null,null,null,null,"진로","물질과 에너지",4,null,null,"일반","정보",4]
[null,null,"일반","미술",3,null,null,null,null,null,null,null,"진로","생물의 유전",4]
[null,null,"일반","체육2",2,null,null,null,null,null,null,null,"진로","지구시스템과학",4]
[null,null,"공통","과학탐구실험2",1,null,null,null,null,null,null,null,"진로","음악 감상과 비평",4]
[null,"2학년 1학기","일반","문학",4]
[null,null,"일반","대수",4]
[null,null,"일반","영어Ⅰ",4]
[null,null,"진로","스포츠 문화",1]
[null,"2학년 2학기","일반","독서와 작문",4]
[null,null,"일반","미적분Ⅰ",4]
[null,null,"일반","영어Ⅱ",4]
[null,null,"진로","스포츠 과학",1]
[null,"3학년 1학기","일반","화법과 언어",4]
[null,null,"일반","확률과 통계",4]
[null,null,"융합","스포츠 생활1",2]
[null,"3학년 2학기","융합","스포츠 생활2 ",2]

{"sheet":"교육과정편성점검표","index":4,"n_rows":59,"n_cols":13,"rows_kept":59,"cut":false,"hidden":false,"merged":[[48,3,48,10],[32,11,33,12],[32,3,33,4],[36,3,36,10],[32,5,32,6],[32,7,32,8],[32,9,32,10],[46,3,46,11],[28,3,28,11],[29,3,29,11],[1,1,1,13],[42,3,42,11],[38,4,38,5],[38,6,38,7],[38,8,38,9],[38,10,38,11],[31,3,31,12],[20,3,20,12],[16,4,16,5],[16,6,16,7],[16,8,16,9],[17,6,17,7],[17,8,17,9],[10,10,10,12],[56,3,56,12],[8,3,8,12],[9,1,18,1],[19,1,40,1],[41,1,59,1],[43,3,43,11],[45,3,45,11],[39,4,39,5],[39,6,39,7],[39,8,39,9],[39,10,39,11],[34,3,34,4],[34,11,34,12],[37,3,37,12],[16,10,17,12],[17,4,17,5],[11,10,11,11],[12,10,12,11],[13,10,13,11],[15,4,15,5],[15,6,15,7],[15,8,15,9],[15,10,15,12]]}
[]
[null,"[일반고] 2025학년도 신입생 교육과정 편성(안) 점검표"]
[]
[null,null,null,"점검학교"]
[null,null,null,"점검일시"]
[null,null,null,"점검자"]
[]
[]
[null,"구분",null,"점검내용"]
[null,"학기별\n이수학점\n점검"]
[null,null,null,"구분","1학년 1학기","1학년 2학기","2학년 1학기","2학년 2학기","3학년 1학기","3학년 2학기","학기별 편성 학점"]
[null,null,null,"교과",29,29,29,29,30,28,"최대 편성 학점",null,33]
[null,null,null,"창체",3,3,3,3,3,3,"최소 편성 학점",null,31]
[null,null,null,"소계",32,32,32,32,33,31,"최대 학점 - 최소 학점",null,2]
[]
[null,null,null,"구분","교과\n(174학점 이상)",null,"창의적 체험활동\n(18학점 이상)",null,"총 이수 학점\n(192학점 이상)",null,"학기별 편성학점\n(28학점 이상, 차이 5학점 이하)"]
[null,null,null,"학점수",174,null,18,null,192,null,"충족"]
[null,null,null,"충족여부","충족",null,"충족",null,"충족"]
[]
[null,"과목별\n이수학점\n점검"]
[null,null,null,"□ 교과별 필수이수학점을 충족하였는가?"]
[null,null,null,"구분","국어","수학","영어","한국사","사회(역/도)","과학","체육","예술","생활교양"]
[null,null,null,"기준",8,8,8,6,8,10,10,10,16]
[null,null,null,"선택가능\n학점","20~39","20~39","16~39","6~6","8~56","10~54","10~10","5~21","8~20"]
[null,null,null,"충족여부","충족","충족","충족","충족","충족","충족","충족","지도필요","지도필요"]
[]
[]
[]
[null,null,null,"□ 공통 과목은 해당 교과(군)의 선택 과목 이수 전 또는 동일시기에 편성하였는가?",null,null,null,null,null,null,null,null,"충족"]
[null,null,null,"□ 과목별 운영학점을 준수하였는가? (과목별 운영학점기준 : 과목기본정보시트 참조)",null,null,null,null,null,null,null,null,"충족"]
[]
[null,null,null,"□ 체육 교과를 매 학기 편성하였는가?"]
[null,null,null,"학기",null,"1학년",null,"2학년",null,"3학년",null,"충족여부"]
[null,null,null,null,null,"1학기","2학기","1학기","2학기","1학기","2학기"]
[null,null,null,"편성여부",null,"○","○","○","○","○","○","충족"]
[]
[null,null,null,"□ [동일 입학년도] ‘동일 과목은 동일 학점으로 편제한다.’의 원칙을 지키고 있는가?",null,null,null,null,null,null,null,null,"충족"]
[null,null,null,"□ 기초 교과(국어, 수학, 영어, 한국사)는 교과 총 이수 학점의 50% 이내(전문교과의 과목을 기초 영역으로 \n    편성한 경우 포함)로 편성하였는가?"]
[null,null,null,"구분","학교지정",null,"학생 선택",null,"합계",null,"비율(%)",null,"충족여부"]
[null,null,null,"학점",62,null,"10~54",null,"72~116",null,"41% ~ 67%",null,"지도필요"]
[]
[null,"교과별\n편제\n점검"]
[null,null,null,"□ (권장) 제2외국어 편성 시 2개 이상의 과목을 동시에 편성하였는가?",null,null,null,null,null,null,null,null,"충족"]
[null,null,null,"□ 학기 단위 편제를 하였는가"]
[]
[null,null,null,"□ 수학교과의 Ⅱ과목은 Ⅰ과목 이수 후 편성하였는가?",null,null,null,null,null,null,null,null,"충족"]
[null,null,null,"□ 영어교과의 Ⅱ과목은 Ⅰ과목 이수 후 편성하였는가?",null,null,null,null,null,null,null,null,"충족"]
[]
[null,null,null,"□ (권장) 대학수학능력시험 국어, 수학, 영어, 탐구 영역 응시 과목은 모두 편성되었는가?",null,null,null,null,null,null,null,null,"충족"]
[null,null,null,"과목","화법과 언어","독서와 작문","문학","대수","미적분Ⅰ","확률과통계"]
[null,null,null,"편성여부","○","○","○","○","○","○"]
[null,null,null,"과목","영어Ⅰ","영어Ⅱ","한국사1","한국사2"]
[null,null,null,"편성여부","○","○","○","○"]
[null,null,null,"과목","통합사회1","통합사회2","통합과학1","통합과학2"]
[null,null,null,"편성여부","○","○","○","○"]
[]
[null,null,null,"□ (권장) 대학수학능력시험 제2외국어 영역 응시가 가능하도록 제2외국어과목을 개설하였는가?"]
[null,null,null,"과목","독일어","일본어","프랑스어","러시아어","스페인어","아랍어","중국어","베트남어"]
[null,null,null,"편성여부",null,"○",null,null,null,null,"○"]

{"sheet":"교육과정편제점검","index":5,"n_rows":16,"n_cols":4,"rows_kept":16,"cut":false,"hidden":true,"merged":[]}
[]
[null,"교육과정 편제 점검"]
[]
[null,"점검 내용","결과(O,△,X)","비고"]
[null,"총 이수 학점 192학점 준수 ","×","총 이수학점 191~194"]
[null,"교과(군) 174학점 이상 편성","×","편성학점 173~176"]
[null,"예술과목(군) 필수 이수 학점 준수",null,"5~21"]
[null,"사회과목(군) 필수 이수 학점 준수","○","선택가능학점: 8~56"]
[null,"과학과목(군) 필수 이수 학점 준수","○","선택가능학점: 10~54"]
[null,"체육과목(군) 필수 이수 학점 준수","○","선택가능학점: 10~10"]
[null,"생활교양 필수 이수 학점 준수",null,"[16학점 이상 이수지도 필요] 선택가능학점: 4~20"]
[null,"과목별 운영 학점 준수","○"]
[null,"체육 교과 매 학기 편성 여부","○"]
[null,"과목 위계성 준수 ","○"]
[null,"국어,수학,영어 이수 학점, 총 교과 이수 학점의 50% 이내",null,"[81학점 초과 가능] 기초과목 선택가능 학점: 65~113"]
[null,"수능 과목 편성 여부","○","모두 편성됨"]

{"sheet":"피드백","index":6,"n_rows":15,"n_cols":2,"rows_kept":15,"cut":false,"hidden":true,"merged":[]}
[]
[]
[null,"입력 칸 구분필요"]
[null,"교차과목 표시 필요"]
[null,"오엑스 선태지 추가 세모"]
[]
[null,"위계성"]
[null,"권장 이수순서 준수여부(수학,과학)"]
[null,"*이 내용은 한국과학창의재단 보고서를 바타응로 어쩌주"]
[null,"전문과목1(2015)-> 2022년 보통교과"]
[]
[null,"수동으로 넣은 과목에 대한 이수학점 점검필요"]
[null,"필수이수단위 소계"]
[null,"이수단위 소계"]
[null,"제2외국어 2과목 이상"]

{"sheet":"점검내용","index":7,"n_rows":22,"n_cols":2,"rows_kept":22,"cut":false,"hidden":true,"merged":[[0,0,1,0]]}
["점검 내용"]
[]
["총 이수 학점 192학점 준수 "]
["교과(군) 174학점 이상 편성"]
["예술과목(군) 필수 이수 학점 준수"]
["사회과목(군) 필수 이수 학점 준수"]
["과학과목(군) 필수 이수 학점 준수"]
["체육과목(군) 필수 이수 학점 준수"]
["생활교양 필수 이수 학점 준수"]
["과목별 운영 학점 준수"]
["체육 교과 매 학기 편성 여부"]
["과목 위계성 준수 "]
["국어,수학,영어 이수 학점, 총 교과 이수 학점의 50% 이내"]
["수능 과목 편성 여부"]
[null,"제2외국어 과목 편성 시 2개 이상 과목 동시 개설 여부"]
[null,"수학,과학 권장 과목 이수 순서 준수 여부 *한국과학창의재단 연구보고서"]
[null,"학기 단위 과목 편성 여부"]
[null,"공통 과목 선이수 후 선택 과목 편성"]
[null,"동일 시기 동일 과목 동일 이수 학점 편성"]
[null,"새로운 과목 개설 시 교과목 신설/사용 승인"]
[null,"전문 교과 개설시 진로 선택 과목으로 편성"]
[null,"고시외 과목 편성시 교육감 승인 여부"]

{"sheet":"과목기본정보","index":8,"n_rows":173,"n_cols":16,"rows_kept":173,"cut":false,"hidden":false,"merged":[]}
[]
[]
[]
["보통교과",null,null,null,null,null,null,null,null,"일반 고등학교 필수이수단위",null,null,null,"특성화 고등학교 필수이수단위"]
[]
["No","교과(군)","과목유형","과목명","기준학점","담당교과","최소학점","최대학점",null,"No","교과(군)","필수이수단위",null,"No","교과(군)","필수이수단위"]
[{"$f":"ROW()-6","v":1},"국어","공통과목","공통국어1",4,"국어",3,4,null,{"$f":"ROW()-6","v":1},"국어",8,null,{"$f":"ROW()-6","v":1},"국수영",24]
[{"$f":"ROW()-6","v":2},"국어","공통과목","공통국어2",4,"국어",3,4,null,{"$f":"ROW()-6","v":2},"수학",8,null,{"$f":"ROW()-6","v":2},"한국사1,2",6]
[3,"국어","일반선택","화법과 언어",4,"국어",3,5,null,3,"영어",8,null,3,"사회과학",12]
[4,"국어","일반선택","독서와 작문",4,"국어",3,5,null,4,"한국사",6,null,4,"체육",8]
[5,"국어","일반선택","문학",4,"국어",3,5,null,5,"사회(역사/도덕 포함)",8,null,5,"예술",6]
[6,"국어","진로선택","주제 탐구 독서",4,"국어",3,5,null,6,"과학",10,null,6,"생활교양",8]
[7,"국어","진로선택","문학과 영상",4,"국어",3,5,null,7,"체육",10]
[8,"국어","진로선택","직무 의사소통",4,"국어",3,5,null,8,"예술",10]
[9,"국어","융합선택","독서 토론과 글쓰기",4,"국어",3,5,null,9,"기술·가정/정보",16]
[10,"국어","융합선택","매체 의사소통",4,"국어",3,5,null,10,"교양",16]
[11,"국어","융합선택","언어생활 탐구",4,"국어",3,5,null,11,"제2외국어/한문",16]
[12,"수학","공통과목","공통수학1",4,"수학",3,4,null,{"$f":"ROW()-6","v":12},"생활교양",16]
[13,"수학","공통과목","공통수학2",4,"수학",3,4]
[14,"수학","일반선택","대수",4,"수학",3,5]
[15,"수학","일반선택","미적분Ⅰ",4,"수학",3,5]
[16,"수학","일반선택","확률과 통계",4,"수학",3,5]
[17,"수학","진로선택","기하",4,"수학",3,5]
[18,"수학","진로선택","미적분Ⅱ",4,"수학",3,5]
[19,"수학","진로선택","경제 수학",4,"수학",3,5]
[20,"수학","진로선택","인공지능 수학",4,"수학",3,5]
[21,"수학","진로선택","직무 수학",4,"수학",3,5]
[22,"수학","융합선택","수학과 문화",4,"수학",3,5]
[23,"수학","융합선택","실용 통계",4,"수학",3,5]
[24,"수학","융합선택","수학과제 탐구",4,"수학",3,5]
[25,"영어","공통과목","공통영어1",4,"영어",3,4]
[26,"영어","공통과목","공통영어2",4,"영어",3,4]
[27,"영어","일반선택","영어Ⅰ",4,"영어",3,5]
[28,"영어","일반선택","영어Ⅱ",4,"영어",3,5]
[29,"영어","일반선택","영어 독해와 작문",4,"영어",3,5]
[30,"영어","진로선택","영미 문학 읽기",4,"영어",3,5]
[31,"영어","진로선택","영어 발표와 토론",4,"영어",3,5]
[32,"영어","진로선택","심화 영어",4,"영어",3,5]
[33,"영어","진로선택","심화 영어 독해와 작문",4,"영어",3,5]
[34,"영어","진로선택","직무 영어",4,"영어",3,5]
[35,"영어","융합선택","실생활 영어 회화",4,"영어",3,5]
[36,"영어","융합선택","미디어 영어",4,"영어",3,5]
[37,"영어","융합선택","세계 문화와 영어",4,"영어",3,5]
[38,"사회(역사/도덕 포함)","공통과목","한국사1",3,"역사",3,3]
[39,"사회(역사/도덕 포함)","공통과목","한국사2",3,"역사",3,3]
[40,"사회(역사/도덕 포함)","공통과목","통합사회1",4,"사회",3,4]
[41,"사회(역사/도덕 포함)","공통과목","통합사회2",4,"사회",3,4]
[42,"사회(역사/도덕 포함)","일반선택","세계시민과 지리",4,"지리",3,5]
[43,"사회(역사/도덕 포함)","일반선택","세계사",4,"역사",3,5]
[44,"사회(역사/도덕 포함)","일반선택","사회와 문화",4,"일반사회",3,5]
[45,"사회(역사/도덕 포함)","일반선택","현대사회와 윤리",4,"도덕",3,5]
[46,"사회(역사/도덕 포함)","진로선택","한국지리 탐구",4,"지리",3,5]
[47,"사회(역사/도덕 포함)","진로선택","도시의 미래 탐구",4,"지리",3,5]
[48,"사회(역사/도덕 포함)","진로선택","동아시아 역사 기행",4,"역사",3,5]
[49,"사회(역사/도덕 포함)","진로선택","정치",4,"일반사회",3,5]
[50,"사회(역사/도덕 포함)","진로선택","법과 사회",4,"일반사회",3,5]
[51,"사회(역사/도덕 포함)","진로선택","경제",4,"일반사회",3,5]
[52,"사회(역사/도덕 포함)","진로선택","윤리와 사상",4,"도덕",3,5]
[53,"사회(역사/도덕 포함)","진로선택","인문학과 윤리",4,"도덕",3,5]
[54,"사회(역사/도덕 포함)","진로선택","국제 관계의 이해",4,"일반사회",3,5]
[55,"사회(역사/도덕 포함)","융합선택","여행지리",4,"지리",3,5]
[56,"사회(역사/도덕 포함)","융합선택","역사로 탐구하는 현대 세계",4,"역사",3,5]
[57,"사회(역사/도덕 포함)","융합선택","사회문제 탐구",4,"일반사회",3,5]
[58,"사회(역사/도덕 포함)","융합선택","금융과 경제생활",4,"일반사회",3,5]
[59,"사회(역사/도덕 포함)","융합선택","윤리문제 탐구",4,"도덕",3,5]
[60,"사회(역사/도덕 포함)","융합선택","기후변화와 지속가능한 세계",4,"지리",3,5]
[61,"과학","공통과목","통합과학1",4,"과학",3,4]
[62,"과학","공통과목","통합과학2",4,"과학",3,4]
[63,"과학","공통과목","과학탐구실험1",1,"과학",1,1]
[64,"과학","공통과목","과학탐구실험2",1,"과학",1,1]
[65,"과학","일반선택","물리학",4,"물리학",3,5]
[{"$f":"ROW()-6","v":66},"과학","일반선택","화학",4,"화학",3,5]
[67,"과학","일반선택","생명과학",4,"생명과학",3,5]
[68,"과학","일반선택","지구과학",4,"지구과학",3,5]
[69,"과학","진로선택","역학과 에너지",4,"물리학",3,5]
[70,"과학","진로선택","전자기와 양자",4,"물리학",3,5]
[71,"과학","진로선택","물질과 에너지",4,"화학",3,5]
[72,"과학","진로선택","화학 반응의 세계",4,"화학",3,5]
[73,"과학","진로선택","세포와 물질대사",4,"생명과학",3,5]
[74,"과학","진로선택","생물의 유전",4,"생명과학",3,5]
[75,"과학","진로선택","지구시스템과학",4,"지구과학",3,5]
[76,"과학","진로선택","행성우주과학",4,"지구과학",3,5]
[77,"과학","융합선택","과학의 역사와 문화",4,"과학",3,5]
[78,"과학","융합선택","기후변화와 환경생태",4,"과학",3,5]
[79,"과학","융합선택","융합과학 탐구",4,"과학",3,5]
[80,"체육","일반선택","체육1",3,"체육",2,4]
[81,"체육","일반선택","체육2",3,"체육",2,4]
[82,"체육","진로선택","운동과 건강",3,"체육",2,4]
[83,"체육","진로선택","스포츠 문화",2,"체육",1,2]
[84,"체육","진로선택","스포츠 과학",2,"체육",1,2]
[85,"체육","융합선택","스포츠 생활1",3,"체육",2,4]
[86,"체육","융합선택","스포츠 생활2 ",3,"체육",2,4]
[87,"예술","일반선택","음악",3,"음악",2,4]
[88,"예술","일반선택","미술",3,"미술",2,4]
[89,"예술","진로선택","연극",3,null,2,4]
[90,"예술","진로선택","음악 연주와 창작",3,"음악",2,4]
[91,"예술","진로선택","음악 감상과 비평",3,"음악",2,4]
[92,"예술","진로선택","미술 창작",3,"미술",2,4]
[93,"예술","진로선택","미술 감상과 비평",3,"미술",2,4]
[94,"예술","융합선택","음악과 미디어",3,"음악",2,4]
[95,"예술","융합선택","미술과 매체",3,"미술",2,4]
[96,"기술·가정/정보","일반선택","기술·가정",4,"기술가정",3,5]
[97,"기술·가정/정보","일반선택","정보",4,"정보",3,5]
[98,"기술·가정/정보","진로선택","로봇과 공학세계",4,"기술가정",3,5]
[99,"기술·가정/정보","진로선택","생활과학 탐구",4,"기술가정",3,5]
[100,"기술·가정/정보","진로선택","인공지능 기초",4,"정보",3,5]
[101,"기술·가정/정보","진로선택","데이터 과학",4,"정보",3,5]
[102,"기술·가정/정보","융합선택","창의 공학 설계",4,"기술가정",3,5]
[103,"기술·가정/정보","융합선택","지식 재산 일반",4,"기술가정",3,5]
[104,"기술·가정/정보","융합선택","생애 설계와 자립",2,"기술가정",1,2]
[105,"기술·가정/정보","융합선택","아동발달과 부모",4,"기술가정",3,5]
[106,"기술·가정/정보","융합선택","소프트웨어와 생활",4,"정보",3,5]
[107,"교양","일반선택","진로와 직업",3,"교양",2,4]
[108,"교양","일반선택","생태와 환경",3,"교양",2,4]
[109,"교양","진로선택","인간과 철학",3,"교양",2,4]
[110,"교양","진로선택","논리와 사고",3,"교양",2,4]
[111,"교양","진로선택","인간과 심리",3,"교양",2,4]
[112,"교양","진로선택","교육의 이해",3,"교양",2,4]
[113,"교양","진로선택","삶과 종교",3,"교양",2,4]
[114,"교양","진로선택","보건",3,"교양",2,4]
[115,"교양","융합선택","인간과 경제활동",3,"교양",2,4]
[116,"교양","융합선택","논술",3,"교양",2,4]
[117,"제2외국어/한문","일반선택","독일어",4,"제2외국어",3,5]
[118,"제2외국어/한문","일반선택","프랑스어",4,"제2외국어",3,5]
[119,"제2외국어/한문","일반선택","스페인어",4,"제2외국어",3,5]
[120,"제2외국어/한문","일반선택","중국어",4,"제2외국어",3,5]
[121,"제2외국어/한문","일반선택","일본어",4,"제2외국어",3,5]
[122,"제2외국어/한문","일반선택","러시아어",4,"제2외국어",3,5]
[123,"제2외국어/한문","일반선택","아랍어",4,"제2외국어",3,5]
[124,"제2외국어/한문","일반선택","베트남어",4,"제2외국어",3,5]
[125,"제2외국어/한문","일반선택","한문",4,"한문",3,5]
[126,"제2외국어/한문","진로선택","독일어 회화",4,"제2외국어",3,5]
[127,"제2외국어/한문","진로선택","프랑스어 회화",4,"제2외국어",3,5]
[128,"제2외국어/한문","진로선택","스페인어 회화",4,"제2외국어",3,5]
[129,"제2외국어/한문","진로선택","중국어 회화",4,"제2외국어",3,5]
[{"$f":"ROW()-6","v":130},"제2외국어/한문","진로선택","일본어 회화",4,"제2외국어",3,5]
[131,"제2외국어/한문","진로선택","러시아어 회화",4,"제2외국어",3,5]
[132,"제2외국어/한문","진로선택","아랍어 회화",4,"제2외국어",3,5]
[133,"제2외국어/한문","진로선택","베트남어 회화",4,"제2외국어",3,5]
[134,"제2외국어/한문","진로선택","심화 독일어",4,"제2외국어",3,5]
[135,"제2외국어/한문","진로선택","심화 프랑스어",4,"제2외국어",3,5]
[136,"제2외국어/한문","진로선택","심화 스페인어",4,"제2외국어",3,5]
[137,"제2외국어/한문","진로선택","심화 중국어",4,"제2외국어",3,5]
[138,"제2외국어/한문","진로선택","심화 일본어",4,"제2외국어",3,5]
[139,"제2외국어/한문","진로선택","심화 러시아어",4,"제2외국어",3,5]
[140,"제2외국어/한문","진로선택","심화 아랍어",4,"제2외국어",3,5]
[141,"제2외국어/한문","진로선택","심화 베트남어",4,"제2외국어",3,5]
[142,"제2외국어/한문","진로선택","한문 고전 읽기",4,"제2외국어",3,5]
[143,"제2외국어/한문","융합선택","독일어권 문화",4,"제2외국어",3,5]
[144,"제2외국어/한문","융합선택","프랑스어권 문화",4,"제2외국어",3,5]
[145,"제2외국어/한문","융합선택","스페인어권 문화",4,"제2외국어",3,5]
[146,"제2외국어/한문","융합선택","중국 문화",4,"제2외국어",3,5]
[147,"제2외국어/한문","융합선택","일본 문화",4,"제2외국어",3,5]
[148,"제2외국어/한문","융합선택","러시아 문화",4,"제2외국어",3,5]
[149,"제2외국어/한문","융합선택","아랍 문화",4,"제2외국어",3,5]
[150,"제2외국어/한문","융합선택","베트남 문화",4,"제2외국어",3,5]
[151,"제2외국어/한문","융합선택","언어생활과 한자",4,"한문",3,5]
[152,"기술·가정/정보","진로선택","프로그래밍",4,null,3,5]
[153,"기술·가정/정보","진로선택","인공지능과 미래사회",4,null,3,5]
[154,"기술·가정/정보","진로선택","정보과학",4,null,3,5]
[155,"기술·가정/정보","진로선택","자료구조",4,null,3,5]
[156,"기술·가정/정보","진로선택","빅 데이터 분석",4,null,3,5]
[157,"과학","진로선택","고급 물리학",4,null,3,5]
[158,"과학","진로선택","고급 화학",4,null,3,5]
[159,"과학","진로선택","고급 생명과학",4,null,3,5]
[160,"과학","진로선택","고급 지구과학",4,null,3,5]
[161,"기술·가정/정보","진로선택","컴퓨터 시스템 일반",4,null,3,5]
[162,"기술·가정/정보","진로선택","사무관리",4,null,3,5]
[163,"기술·가정/정보","진로선택","굴삭기운전",4,null,3,5]
[164]
[165]
[166]
[167]

{"sheet":"DB","index":9,"n_rows":93,"n_cols":11,"rows_kept":93,"cut":false,"hidden":false,"merged":[]}
["입학년도","학기","유형","과목명","학점","지정여부","개설반수","담당과목","수업시기","교과(군)","그룹 내 선택수"]
[2023,"1학년 1학기","공통","공통국어1",4,"지정",5,"국어","2023년 1학기","국어"]
[2023,"1학년 1학기","공통","공통수학1",4,"지정",5,"수학","2023년 1학기","수학"]
[2023,"1학년 1학기","공통","공통영어1",4,"지정",5,"영어","2023년 1학기","영어"]
[2023,"1학년 1학기","공통","통합사회1",4,"지정",5,"사회","2023년 1학기","사회(역사/도덕 포함)"]
[2023,"1학년 1학기","공통","통합과학1",4,"지정",5,"과학","2023년 1학기","과학"]
[2023,"1학년 1학기","공통","한국사1",3,"지정",5,"역사","2023년 1학기","사회(역사/도덕 포함)"]
[2023,"1학년 1학기","일반","음악",3,"지정",2,"음악","2023년 1학기","예술"]
[2023,"1학년 1학기","일반","미술",3,"지정",2,"미술","2023년 1학기","예술"]
[2023,"1학년 1학기","일반","체육1",2,"지정",5,"체육","2023년 1학기","체육"]
[2023,"1학년 1학기","공통","과학탐구실험1",1,"지정",5,"과학","2023년 1학기","과학"]
[2023,"1학년 2학기","공통","공통국어2",4,"지정",5,"국어","2023년 2학기","국어"]
[2023,"1학년 2학기","공통","공통수학2",4,"지정",5,"수학","2023년 2학기","수학"]
[2023,"1학년 2학기","공통","공통영어2",4,"지정",5,"영어","2023년 2학기","영어"]
[2023,"1학년 2학기","공통","통합사회2",4,"지정",5,"사회","2023년 2학기","사회(역사/도덕 포함)"]
[2023,"1학년 2학기","공통","통합과학2",4,"지정",5,"과학","2023년 2학기","과학"]
[2023,"1학년 2학기","공통","한국사2",3,"지정",5,"역사","2023년 2학기","사회(역사/도덕 포함)"]
[2023,"1학년 2학기","일반","음악",3,"지정",2,"음악","2023년 2학기","예술"]
[2023,"1학년 2학기","일반","미술",3,"지정",2,"미술","2023년 2학기","예술"]
[2023,"1학년 2학기","일반","체육2",2,"지정",5,"체육","2023년 2학기","체육"]
[2023,"1학년 2학기","공통","과학탐구실험2",1,"지정",5,"과학","2023년 2학기","과학"]
[2023,"2학년 1학기","일반","문학",4,"지정",5,"국어","2024년 1학기","국어"]
[2023,"2학년 1학기","일반","대수",4,"지정",5,"수학","2024년 1학기","수학"]
[2023,"2학년 1학기","일반","영어Ⅰ",4,"지정",5,"영어","2024년 1학기","영어"]
[2023,"2학년 1학기","진로","스포츠 문화",1,"지정",5,"체육","2024년 1학기","체육"]
[2023,"2학년 1학기","진로","직무 영어",4,"A",3,"영어","2024년 1학기","영어","A 택3 12학점"]
[2023,"2학년 1학기","일반","세계시민과 지리",4,"A",3,"지리","2024년 1학기","사회(역사/도덕 포함)","A 택3 12학점"]
[2023,"2학년 1학기","일반","세계사",4,"A",3,"역사","2024년 1학기","사회(역사/도덕 포함)","A 택3 12학점"]
[2023,"2학년 1학기","일반","사회와 문화",4,"A",3,"일반사회","2024년 1학기","사회(역사/도덕 포함)","A 택3 12학점"]
[2023,"2학년 1학기","일반","현대사회와 윤리",4,"A",3,"도덕","2024년 1학기","사회(역사/도덕 포함)","A 택3 12학점"]
[2023,"2학년 1학기","일반","물리학",4,"A",3,"물리학","2024년 1학기","과학","A 택3 12학점"]
[2023,"2학년 1학기","일반","화학",4,"A",3,"화학","2024년 1학기","과학","A 택3 12학점"]
[2023,"2학년 1학기","일반","생명과학",4,"A",3,"생명과학","2024년 1학기","과학","A 택3 12학점"]
[2023,"2학년 1학기","일반","지구과학",4,"A",3,"지구과학","2024년 1학기","과학","A 택3 12학점"]
[2023,"2학년 1학기","진로","미술 창작",4,"A",3,"미술","2024년 1학기","예술","A 택3 12학점"]
[2023,"2학년 1학기","일반","중국어",4,"B",3,"제2외국어","2024년 1학기","제2외국어/한문","B 택1 4학점"]
[2023,"2학년 1학기","일반","일본어",4,"B",3,"제2외국어","2024년 1학기","제2외국어/한문","B 택1 4학점"]
[2023,"2학년 1학기","일반","한문",4,"B",3,"한문","2024년 1학기","제2외국어/한문","B 택1 4학점"]
[2023,"2학년 2학기","일반","독서와 작문",4,"지정",5,"국어","2024년 1학기","국어"]
[2023,"2학년 2학기","일반","미적분Ⅰ",4,"지정",5,"수학","2024년 1학기","수학"]
[2023,"2학년 2학기","일반","영어Ⅱ",4,"지정",5,"영어","2024년 1학기","영어"]
[2023,"2학년 2학기","진로","스포츠 과학",1,"지정",5,"체육","2024년 1학기","체육"]
[2023,"2학년 2학기","진로","주제 탐구 독서",4,"A",3,"국어","2024년 1학기","국어","A 택4 16학점"]
[2023,"2학년 2학기","진로","기하",4,"A",3,"수학","2024년 1학기","수학","A 택4 16학점"]
[2023,"2학년 2학기","융합","미디어 영어",4,"A",3,"영어","2024년 1학기","영어","A 택4 16학점"]
[2023,"2학년 2학기","일반","세계시민과 지리",4,"A",3,"지리","2024년 1학기","사회(역사/도덕 포함)","A 택4 16학점"]
[2023,"2학년 2학기","일반","세계사",4,"A",3,"역사","2024년 1학기","사회(역사/도덕 포함)","A 택4 16학점"]
[2023,"2학년 2학기","일반","사회와 문화",4,"A",3,"일반사회","2024년 1학기","사회(역사/도덕 포함)","A 택4 16학점"]
[2023,"2학년 2학기","일반","현대사회와 윤리",4,"A",3,"도덕","2024년 1학기","사회(역사/도덕 포함)","A 택4 16학점"]
[2023,"2학년 2학기","진로","한국지리 탐구",4,"A",3,"지리","2024년 1학기","사회(역사/도덕 포함)","A 택4 16학점"]
[2023,"2학년 2학기","진로","동아시아 역사 기행",4,"A",3,"역사","2024년 1학기","사회(역사/도덕 포함)","A 택4 16학점"]
[2023,"2학년 2학기","진로","법과 사회",4,"A",3,"일반사회","2024년 1학기","사회(역사/도덕 포함)","A 택4 16학점"]
[2023,"2학년 2학기","진로","윤리와 사상",4,"A",3,"도덕","2024년 1학기","사회(역사/도덕 포함)","A 택4 16학점"]
[2023,"2학년 2학기","일반","물리학",4,"A",3,"물리학","2024년 1학기","과학","A 택4 16학점"]
[2023,"2학년 2학기","일반","화학",4,"A",3,"화학","2024년 1학기","과학","A 택4 16학점"]
[2023,"2학년 2학기","일반","생명과학",4,"A",3,"생명과학","2024년 1학기","과학","A 택4 16학점"]
[2023,"2학년 2학기","일반","지구과학",4,"A",3,"지구과학","2024년 1학기","과학","A 택4 16학점"]
[2023,"2학년 2학기","진로","역학과 에너지",4,"A",3,"물리학","2024년 1학기","과학","A 택4 16학점"]
[2023,"2학년 2학기","진로","물질과 에너지",4,"A",3,"화학","2024년 1학기","과학","A 택4 16학점"]
[2023,"2학년 2학기","진로","생물의 유전",4,"A",3,"생명과학","2024년 1학기","과학","A 택4 16학점"]
[2023,"2학년 2학기","진로","지구시스템과학",4,"A",3,"지구과학","2024년 1학기","과학","A 택4 16학점"]
[2023,"2학년 2학기","진로","음악 감상과 비평",4,"A",3,"음악","2024년 1학기","예술","A 택4 16학점"]
[2023,"3학년 1학기","일반","화법과 언어",4,"지정",5,"국어","2025년 1학기","국어"]
[2023,"3학년 1학기","일반","확률과 통계",4,"지정",5,"수학","2025년 1학기","수학"]
[2023,"3학년 1학기","융합","스포츠 생활1",2,"지정",5,"체육","2025년 1학기","체육"]
[2023,"3학년 1학기","융합","독서 토론과 글쓰기",4,"A",3,"국어","2025년 1학기","국어","A 택5 20학점"]
[2023,"3학년 1학기","융합","언어생활 탐구",4,"A",3,"국어","2025년 1학기","국어","A 택5 20학점"]
[2023,"3학년 1학기","진로","미적분Ⅱ",4,"A",3,"수학","2025년 1학기","수학","A 택5 20학점"]
[2023,"3학년 1학기","융합","실용 통계",4,"A",3,"수학","2025년 1학기","수학","A 택5 20학점"]
[2023,"3학년 1학기","일반","영어 독해와 작문",4,"A",3,"영어","2025년 1학기","영어","A 택5 20학점"]
[2023,"3학년 1학기","진로","영어 발표와 토론",4,"A",3,"영어","2025년 1학기","영어","A 택5 20학점"]
[2023,"3학년 1학기","진로","도시의 미래 탐구",4,"A",3,"지리","2025년 1학기","사회(역사/도덕 포함)","A 택5 20학점"]
[2023,"3학년 1학기","진로","정치",4,"A",3,"일반사회","2025년 1학기","사회(역사/도덕 포함)","A 택5 20학점"]
[2023,"3학년 1학기","진로","경제",4,"A",3,"일반사회","2025년 1학기","사회(역사/도덕 포함)","A 택5 20학점"]
[2023,"3학년 1학기","진로","인문학과 윤리",4,"A",3,"도덕","2025년 1학기","사회(역사/도덕 포함)","A 택5 20학점"]
[2023,"3학년 1학기","진로","국제 관계의 이해",4,"A",3,"일반사회","2025년 1학기","사회(역사/도덕 포함)","A 택5 20학점"]
[2023,"3학년 1학기","진로","전자기와 양자",4,"A",3,"물리학","2025년 1학기","과학","A 택5 20학점"]
[2023,"3학년 1학기","진로","화학 반응의 세계",4,"A",3,"화학","2025년 1학기","과학","A 택5 20학점"]
[2023,"3학년 1학기","진로","세포와 물질대사",4,"A",3,"생명과학","2025년 1학기","과학","A 택5 20학점"]
[2023,"3학년 1학기","진로","행성우주과학",4,"A",3,"지구과학","2025년 1학기","과학","A 택5 20학점"]
[2023,"3학년 1학기","융합","미술과 매체",4,"A",3,"미술","2025년 1학기","예술","A 택5 20학점"]
[2023,"3학년 1학기","일반","정보",4,"A",3,"정보","2025년 1학기","기술·가정/정보","A 택5 20학점"]
[2023,"3학년 2학기","융합","스포츠 생활2 ",2,"지정",5,"체육","2025년 1학기","체육"]
[2023,"3학년 2학기","융합","매체 의사소통",4,"A",3,"국어","2025년 1학기","국어","A 택5 20학점"]
[2023,"3학년 2학기","진로","직무 수학",4,"A",3,"수학","2025년 1학기","수학","A 택5 20학점"]
[2023,"3학년 2학기","융합","세계 문화와 영어",4,"A",3,"영어","2025년 1학기","영어","A 택5 20학점"]
[2023,"3학년 2학기","융합","음악과 미디어",4,"A",3,"음악","2025년 1학기","예술","A 택5 20학점"]
[2023,"3학년 2학기","융합","지식 재산 일반",4,"A",3,"기술가정","2025년 1학기","기술·가정/정보","A 택5 20학점"]
[2023,"3학년 2학기","진로","인간과 철학",4,"A",3,"교양","2025년 1학기","교양","A 택5 20학점"]
[2023,"3학년 2학기","진로","보건",4,"A",3,"교양","2025년 1학기","교양","A 택5 20학점"]
[2023,"3학년 2학기","진로","직무 의사소통",3,"B",3,"국어","2025년 1학기","국어","B 택2 6학점"]
[2023,"3학년 2학기","진로","경제 수학",3,"B",3,"수학","2025년 1학기","수학","B 택2 6학점"]
[2023,"3학년 2학기","진로","심화 영어",3,"B",3,"영어","2025년 1학기","영어","B 택2 6학점"]

{"sheet":"5학급_모듈1","index":10,"n_rows":135,"n_cols":48,"rows_kept":135,"cut":false,"hidden":true,"merged":[]}
[]
[]
[]
[]
[null,null,null,null,null,null,null,null,null,null,null,null,null,"1학년1학기","학점","선택\n그룹","개설\n반수","담당\n교과",null,"1학년2학기","학점","선택\n그룹","개설\n반수","담당\n교과",null,"2학년1학기","학점","선택\n그룹","개설\n반수","담당\n교과",null,"2학년2학기","학점","선택\n그룹","개설\n반수","담당\n교과",null,"3학년1학기","학점","선택\n그룹","개설\n반수","담당\n교과",null,"3학년2학기","학점","선택\n그룹","개설\n반수","담당\n교과"]
[null,null,null,null,null,null,null,null,null,null,null,null,null,"공통국어1",4,"지정",5,"국어",null,"공통국어2",4,"지정",5,"국어",null,"문학",4,"지정",5,"국어",null,"독서와 작문",4,"지정",5,"국어",null,"화법과 언어",4,"지정",5,"국어",null,"스포츠 생활2 ",2,"지정",5,"체육"]
[null,null,null,null,null,"지정과목",4,null,null,null,null,null,null,"공통수학1",4,"지정",5,"수학",null,"공통수학2",4,"지정",5,"수학",null,"대수",4,"지정",5,"수학",null,"미적분Ⅰ",4,"지정",5,"수학",null,"확률과 통계",4,"지정",5,"수학",null,"매체 의사소통",4,"A",null,"국어"]
[null,null,null,null,null,"지정과목",null,4,null,null,null,null,null,"공통영어1",4,"지정",5,"영어",null,"공통영어2",4,"지정",5,"영어",null,"영어Ⅰ",4,"지정",5,"영어",null,"영어Ⅱ",4,"지정",5,"영어",null,"스포츠 생활1",2,"지정",5,"체육",null,"직무 수학",4,"A",null,"수학"]
[null,null,null,null,null,"지정과목",null,null,null,null,4,null,null,"통합사회1",4,"지정",5,"사회",null,"통합사회2",4,"지정",5,"사회",null,"스포츠 문화",1,"지정",5,"체육",null,"스포츠 과학",1,"지정",5,"체육",null,"독서 토론과 글쓰기",4,"A",null,"국어",null,"세계 문화와 영어",4,"A",null,"영어"]
[null,null,null,null,null,"지정과목",null,null,null,4,null,null,null,"통합과학1",4,"지정",5,"과학",null,"통합과학2",4,"지정",5,"과학",null,"직무 영어",4,"A",null,"영어",null,"주제 탐구 독서",4,"A",null,"국어",null,"언어생활 탐구",4,"A",null,"국어",null,"음악과 미디어",4,"A",null,"음악"]
[null,null,null,null,null,"지정과목",null,null,4,null,null,null,null,"한국사1",3,"지정",5,"역사",null,"한국사2",3,"지정",5,"역사",null,"세계시민과 지리",4,"A",null,"지리",null,"기하",4,"A",null,"수학",null,"미적분Ⅱ",4,"A",null,"수학",null,"지식 재산 일반",4,"A",null,"기술가정"]
[null,null,null,null,null,null,null,null,null,4,null,null,null,"음악",3,"지정",2,"음악",null,"음악",3,"지정",2,"음악",null,"세계사",4,"A",null,"역사",null,"미디어 영어",4,"A",null,"영어",null,"실용 통계",4,"A",null,"수학",null,"인간과 철학",4,"A",null,"교양"]
[null,null,null,null,null,null,null,null,null,null,null,null,null,"미술",3,"지정",2,"미술",null,"미술",3,"지정",2,"미술",null,"사회와 문화",4,"A",null,"일반사회",null,"세계시민과 지리",4,"A",null,"지리",null,"영어 독해와 작문",4,"A",null,"영어",null,"보건",4,"A",null,"교양"]
[null,null,null,null,null,null,null,null,null,null,null,3,null,"체육1",2,"지정",5,"체육",null,"체육2",2,"지정",5,"체육",null,"현대사회와 윤리",4,"A",null,"도덕",null,"세계사",4,"A",null,"역사",null,"영어 발표와 토론",4,"A",null,"영어",null,"직무 의사소통",3,"B",null,"국어"]
[null,null,null,null,null,null,null,null,null,null,4,null,null,"과학탐구실험1",1,"지정",5,"과학",null,"과학탐구실험2",1,"지정",5,"과학",null,"물리학",4,"A",null,"물리학",null,"사회와 문화",4,"A",null,"일반사회",null,"도시의 미래 탐구",4,"A",null,"지리",null,"경제 수학",3,"B",null,"수학"]
[null,null,null,null,null,null,null,null,null,null,null,4,null,null,null,null,null,null,null,null,null,null,null,null,null,"화학",4,"A",null,"화학",null,"현대사회와 윤리",4,"A",null,"도덕",null,"정치",4,"A",null,"일반사회",null,"심화 영어",3,"B",null,"영어"]
[null,null,null,null,null,null,null,null,null,null,4,null,null,null,null,null,null,null,null,null,null,null,null,null,null,"생명과학",4,"A",null,"생명과학",null,"한국지리 탐구",4,"A",null,"지리",null,"경제",4,"A",null,"일반사회"]
[null,null,null,null,null,"지정과목",4,null,null,null,null,null,null,null,null,null,null,null,null,null,null,null,null,null,null,"지구과학",4,"A",null,"지구과학",null,"동아시아 역사 기행",4,"A",null,"역사",null,"인문학과 윤리",4,"A",null,"도덕",null,"선택그룹","택","학점"]
[null,null,null,null,null,"지정과목",null,4,null,null,null,null,null,null,null,null,null,null,null,null,null,null,null,null,null,"미술 창작",4,"A",null,"미술",null,"법과 사회",4,"A",null,"일반사회",null,"국제 관계의 이해",4,"A",null,"일반사회",null,"A",5,20]
[null,null,null,null,null,null,null,null,null,null,null,null,null,null,null,null,null,null,null,null,null,null,null,null,null,"중국어",4,"B",null,"제2외국어",null,"윤리와 사상",4,"A",null,"도덕",null,"전자기와 양자",4,"A",null,"물리학",null,"B",2,6]
[null,null,null,null,null,null,null,null,null,null,null,null,null,null,null,null,null,null,null,null,null,null,null,null,null,"일본어",4,"B",null,"제2외국어",null,"물리학",4,"A",null,"물리학",null,"화학 반응의 세계",4,"A",null,"화학"]
[null,null,null,null,null,"지정과목",null,null,4,null,null,null,null,null,null,null,null,null,null,null,null,null,null,null,null,"한문",4,"B",null,"한문",null,"화학",4,"A",null,"화학",null,"세포와 물질대사",4,"A",null,"생명과학"]
[null,null,null,null,null,"지정과목",null,null,null,4,null,null,null,null,null,null,null,null,null,null,null,null,null,null,null,null,null,null,null,null,null,"생명과학",4,"A",null,"생명과학",null,"행성우주과학",4,"A",null,"지구과학"]
[null,null,null,null,null,"지정과목",null,null,null,null,4,null,null,null,null,null,null,null,null,null,null,null,null,null,null,"선택그룹","택","학점",null,null,null,"지구과학",4,"A",null,"지구과학",null,"미술과 매체",4,"A",null,"미술"]
[null,null,null,null,null,null,null,null,null,4,null,null,null,null,null,null,null,null,null,null,null,null,null,null,null,"A",3,12,null,null,null,"역학과 에너지",4,"A",null,"물리학",null,"정보",4,"A",null,"정보"]
[null,null,null,null,null,null,null,null,null,null,4,null,null,null,null,null,null,null,null,null,null,null,null,null,null,"B",1,4,null,null,null,"물질과 에너지",4,"A",null,"화학"]
[null,null,null,null,null,null,null,null,null,null,null,3,null,null,null,null,null,null,null,null,null,null,null,null,null,null,null,null,null,null,null,"생물의 유전",4,"A",null,"생명과학",null,"선택그룹","택","학점"]
[null,null,null,null,null,null,null,null,null,null,null,null,null,null,null,null,null,null,null,null,null,null,null,null,null,null,null,null,null,null,null,"지구시스템과학",4,"A",null,"지구과학",null,"A",5,20]
[null,null,null,null,null,null,null,null,null,null,null,4,null,null,null,null,null,null,null,null,null,null,null,null,null,null,null,null,null,null,null,"음악 감상과 비평",4,"A",null,"음악"]
[]
[null,null,null,null,null,null,null,null,null,null,4,null,null,null,null,null,null,null,null,null,null,null,null,null,null,null,null,null,null,null,null,"선택그룹","택","학점"]
[null,null,null,null,null,null,null,null,null,null,null,null,null,null,null,null,null,null,null,null,null,null,null,null,null,null,null,null,null,null,null,"A",4,16]
[null,null,null,null,null,"지정과목",4]
[null,null,null,null,null,"지정과목",null,4]
[]
[]
[null,null,null,null,null,"지정과목",null,null,4]
[null,null,null,null,null,"지정과목",null,null,null,4]
[null,null,null,null,null,null,null,null,null,null,4]
[]
[null,null,null,null,null,null,null,null,null,null,4]
[null,null,null,null,null,null,null,null,null,null,null,3]
[]
[null,null,null,null,null,null,null,null,4]
[]
[null,null,null,null,null,null,null,null,null,4]
[null,null,null,null,null,null,null,null,null,null,null,4]
[null,null,null,null,null,"지정과목",3]
[null,null,null,null,null,"지정과목",null,3]
[null,null,null,null,null,"지정과목",4]
[null,null,null,null,null,"지정과목",null,4]
[null,null,null,null,null,null,null,null,4,4]
[null,null,null,null,null,null,null,null,4,4]
[null,null,null,null,null,null,null,null,4,4]
[null,null,null,null,null,null,null,null,4,4]
[null,null,null,null,null,null,null,null,null,4]
[null,null,null,null,null,null,null,null,null,null,4]
[null,null,null,null,null,null,null,null,null,4]
[null,null,null,null,null,null,null,null,null,null,4]
[null,null,null,null,null,null,null,null,null,4]
[null,null,null,null,null,null,null,null,null,null,4]
[null,null,null,null,null,null,null,null,null,4]
[null,null,null,null,null,null,null,null,null,null,4]
[null,null,null,null,null,null,null,null,null,null,4]
[]
[]
[]
[]
[]
[]
[null,null,null,null,null,"지정과목",4]
[null,null,null,null,null,"지정과목",null,4]
[null,null,null,null,null,"지정과목",1]
[null,null,null,null,null,"지정과목",null,1]
[null,null,null,null,null,null,null,null,4,4]
[null,null,null,null,null,null,null,null,4,4]
[null,null,null,null,null,null,null,null,4,4]
[null,null,null,null,null,null,null,null,4,4]
[null,null,null,null,null,null,null,null,null,4]
[null,null,null,null,null,null,null,null,null,null,4]
[null,null,null,null,null,null,null,null,null,4]
[null,null,null,null,null,null,null,null,null,null,4]
[null,null,null,null,null,null,null,null,null,null,4]
[null,null,null,null,null,null,null,null,null,4]
[null,null,null,null,null,null,null,null,null,4]
[null,null,null,null,null,null,null,null,null,null,4]
[]
[]
[]
[null,null,null,null,null,"지정과목",2]
[null,null,null,null,null,"지정과목",null,2]
[]
[null,null,null,null,null,"지정과목",null,null,1]
[null,null,null,null,null,"지정과목",null,null,null,1]
[null,null,null,null,null,"지정과목",null,null,null,null,2]
[null,null,null,null,null,"지정과목",null,null,null,null,null,2]
[null,null,null,null,null,"지정과목",3,3]
[null,null,null,null,null,"지정과목",3,3]
[]
[]
[null,null,null,null,null,null,null,null,null,4]
[null,null,null,null,null,null,null,null,4]
[]
[null,null,null,null,null,null,null,null,null,null,null,4]
[null,null,null,null,null,null,null,null,null,null,4]
[]
[null,null,null,null,null,null,null,null,null,null,4]
[]
[]
[]
[]
[]
[null,null,null,null,null,null,null,null,null,null,null,4]
[]
[]
[]
[]
[]
[null,null,null,null,null,null,null,null,null,null,null,4]
[]
[]
[]
[]
[null,null,null,null,null,null,null,null,null,null,null,4]
[]
[]
[]
[]
[]
[null,null,null,null,null,null,null,null,4]
[null,null,null,null,null,null,null,null,4]
[]
[]
[]
[null,null,null,null,null,null,null,null,4]